Workbook

Sheet souhrn
A1: SUBJEKT | B1: odběrné místo | C1: sazba | D1: tarif | F1: Spotřeba v kWh
D2: vysoký | E2: nízký | F2: 2012 | J2: 2013 | N2: 2014 | R2: 2015
F3: Spotřeba VT | G3: Spotřeba NT | H3: Spotřeba celkem | I3: Průměrně za měsíc | J3: Spotřeba VT | K3: Spotřeba NT | L3: Spotřeba celkem | M3: Průměrně za měsíc | N3: Spotřeba VT | O3: Spotřeba NT | P3: Spotřeba celkem | Q3: Průměrně za měsíc | R3: Spotřeba VT | S3: Spotřeba NT | T3: Spotřeba celkem | U3: Průměrně za měsíc
A4: Mateřská škola, Praha 8, Korycanská 14 | B4: Korycanská 14/ čp. 395, 181 00 Praha 8 – Čimice | C4: C02d | E4: není | F4: =2781+7130+3898+4545+6399+3218+4888+11386+5483 -> 49728 | H4: =F4+G4 -> 49728 | I4: =H4/12 -> 4144 | J4: =4073+5413+7246+3489+6000+11532+6294+619+11072 -> 55738 | L4: =J4+K4 -> 55738 | M4: =L4/12 -> 4644.833333 | N4: =3768+7242+3908+6953+6270+9384+10825+6585 -> 54935 | P4: =N4+O4 -> 54935 | Q4: =P4/12 -> 4577.916667 | R4: =4009+6000+6922+4210 -> 21141 | T4: =R4+S4 -> 21141 | U4: =T4/5 -> 4228.2
A5: Mateřská škola, Praha 8, U Sluncové 10a | B5: U Sluncové 10a/ čp. 135, 186 00 Praha 8 – Karlín | C5: C2 | E5: není | F5: =14817+11685 -> 26502 | H5: 26502 | I5: 2208.5 | J5: =13981+10306+2375 -> 26662 | L5: 26662 | M5: 2221.833333 | N5: =15015+12551 -> 27566 | P5: 27566 | Q5: 2297.166667 | R5: 14794 | T5: 14794 | U5: =T5/7 -> 2113.428571
A6: Mateřská škola, Praha 8, Sokolovská 182 | B6: Sokolovská 182/ čp. 513, 180 00 Praha 8 - Libeň | C6: C02d | E6: není | F6: =3788+371+6081+596+8827+604+12641+1273 -> 34181 | H6: 34181 | I6: 2848.416667 | J6: =18993+1913+13334+1351 -> 35591 | L6: 35591 | M6: 2965.916667 | N6: =1346+542+3854+380+3706+810+1620+73+3675 -> 16006 | P6: 16006 | Q6: 1333.833333 | R6: =519+26023 -> 26542 | T6: 26542 | U6: =T6/8 -> 3317.75
A7: Mateřská škola, Praha 8, Kotlaska 3 | B7: Kotlaska 3/ čp. 30, 180 00 Praha 8 – Libeň | C7: C02 | E7: není | F7: =17340.6+28240 -> 45580.6 | H7: 45580.6 | I7: 3798.383333 | J7: =11560.4+3749+3735+3792+3704+3026+3730+3977+4316+4189 -> 45778.4 | L7: 45778.4 | M7: 3814.866667 | N7: =4546+3979+4111+3830+3942+3921+3179+3453+4293+4292+4525+4297 -> 48368 | P7: 48368 | Q7: 4030.666667 | R7: =4743+3340+3242+2815+2410+2247+1260+1591+2737+3608+3633+3654 -> 35280 | T7: 35280 | U7: =T7/12 -> 2940
A8: Mateřská škola, Praha 8, Na Korábě 2 | B8: Na Korábě 2/ čp. 350, 180 00 Praha 8 – Libeň | C8: C2 | E8: není | F8: =6929+8645+6021+5400 -> 26995 | H8: =F8+G8 -> 26995 | I8: 2249.583333 | J8: =9087+7559.4+5650+5860.5 -> 28156.9 | L8: 28156.9 | M8: 2346.408333 | N8: =7910+8204.5+5300+4783 -> 26197.5 | P8: 26197.5 | Q8: 2183.125 | R8: =7420+7972 -> 15392 | T8: 15392 | U8: =T8/5 -> 3078.4
A9: Mateřská škola, Praha 8, Na Pěšinách 13 | B9: Na Pěšinách 13/ čp. 1720, 182 00 Praha 8 - Kobylisy | C9: C2 | E9: není | F9: =17760+22840 -> 40600 | H9: 40600 | I9: 3383.333333 | J9: =17720+17120+3040 -> 37880 | L9: 37880 | M9: 3156.666667 | N9: =9571+3147+3135+3189+2145+2491+3763+3886+3832+3722 -> 38881 | P9: 38881 | Q9: 3240.083333 | R9: =3754+3516+3577+3409+3294+3465+2117+3150+3757+3759+3525+3155 -> 40478 | T9: 40478 | U9: 3373.166667
A10: Mateřská škola, Praha 8, Šiškova 2 | B10: Šiškova 2/ čp. 1223, 182 00 Praha 8 – Kobylisy | C10: C02d | E10: není | F10: =7068+5378+7270+6428+1764 -> 27908 | H10: 27908 | I10: 2325.666667 | J10: =1842+7270+6186+1759+318+7931+1435+6647+1203 -> 34591 | L10: 34591 | M10: 2882.583333 | N10: =1675+7547+6325+9442+7369+1833 -> 34191 | P10: 34191 | Q10: 2849.25 | R10: =7527+5875+1462 -> 14864 | T10: 14864 | U10: =T10/6 -> 2477.333333
A11: Mateřská škola, Praha 8, Bojasova 1 | B11: Bojasova 1/ čp. 1242, 182 00 Praha 8 – Kobylisy | C11: C25d a C02d | E11: chybí specifikace | F11: =3054+7682+465+4734+3359+4749+630 -> 24673 | G11: =1088+1310 -> 2398 | H11: 27071 | I11: 2255.916667 | J11: =3454+4496+597+357+70+4267+843+2733+623+6921 -> 24361 | K11: =1281+1200+274 -> 2755 | L11: 27116 | M11: 2259.666667 | N11: =404+4819+3318+7816+5480+1837+8156 -> 31830 | O11: =1458+1328 -> 2786 | P11: 34616 | Q11: 2884.666667 | R11: =5085+3756+8165 -> 17006 | S11: =1301 -> 1301 | T11: 18307 | U11: =T11/6 -> 3051.166667
A12: Mateřská škola, Praha 8, Šimůnkova 13 | B12: Šimůnkova 13/ čp. 1599, 182 00 Praha 8 – Kobylisy | C12: C2 | E12: není | F12: =3273+2576+6882+2889+8340+2790 -> 26750 | H12: 26750 | I12: 2229.166667 | J12: =2546+7346+2457+1345+261+7371+1430+2407+467 -> 25630 | L12: 25630 | M12: 2135.833333 | N12: =1429+7823+2598+9303+2922+1272 -> 25347 | P12: 25347 | Q12: 2112.25 | R12: =8044+2566+1101 -> 11711 | T12: 11711 | U12: =T12/6 -> 1951.833333
A13: Mateřská škola, Praha 8, Štěpničná 1 | B13: Štěpničná 1/ čp. 1964, 182 00 Praha 8 – Libeň | C13: C02d | E13: není | F13: =12997+1458+7033+822 -> 22310 | H13: 22310 | I13: 1859.166667 | J13: =11983+1403+616+187+5359+1627 -> 21175 | L13: 21175 | M13: 1764.583333 | N13: =1372+11935+928+8258 -> 22493 | P13: 22493 | Q13: 1874.416667 | R13: =14015+1577 -> 15592 | T13: 15592 | U13: =T13/8 -> 1949
A14: Mateřská škola, Praha 8, Chabařovická 2 | B14: Chabařovická 2/ čp. 1349, 182 00 Praha 8 – Kobylisy | C14: C2 | E14: není | F14: =16600+11207+4047+3237 -> 35091 | H14: =F14+G14 -> 35091 | I14: =H14/12 -> 2924.25 | J14: =4066+3293+3079+3111+3342+2936+1477+1485+3320+3788+4319+3675 -> 37891 | L14: =J14+K14 -> 37891 | M14: =L14/12 -> 3157.583333 | N14: 41079 | P14: =N14+O14 -> 41079 | Q14: =P14/12 -> 3423.25 | R14: 43447 | T14: =R14+S14 -> 43447 | U14: =T14/12 -> 3620.583333
A15: Mateřská škola, Praha 8, Na Přesypu 4 | B15: Na Přesypu 4/ čp. 441, 182 00 Praha 8 – Troja | C15: C2 | E15: není | F15: 7427.5 | H15: 7427.5 | I15: 618.9583333 | J15: =1869.5+6924 -> 8793.5 | L15: 8793.5 | M15: =L15/12 -> 732.7916667 | N15: =4945.8+7900.6 -> 12846.4 | P15: =N15+O15 -> 12846.4 | Q15: =P15/12 -> 1070.533333 | R15: 5643.3 | T15: 5643.3 | U15: =T15/5 -> 1128.66
A16: Mateřská škola, Praha 8, Klíčanská 20 | B16: Klíčanská 20/ čp. 1677, 182 00 Praha 8 – Kobylisy | C16: C25d | F16: =12561+12387.5 -> 24948.5 | H16: 24948.5 | I16: 2079.041667 | J16: =12387.5+13238.5 -> 25626 | L16: 25626 | M16: 2135.5 | N16: =13238.5+13139.5 -> 26378 | P16: 26378 | Q16: 2198.166667 | R16: =13139.5 -> 13139.5 | T16: 13139.5 | U16: =T16/6 -> 2189.916667
A17: Mateřská škola, Praha 8, Lešenská 2 | B17: Lešenská 2/ čp. 548, 181 00 Praha 8 – Troja | C17: C02d | E17: není | F17: =4551+11449+1214+636+1255+3044+4254+11307+1400 -> 39110 | H17: 39110 | I17: =H17/11 -> 3555.454545 | J17: =4030+10588+1248+5478+14530+1849+1356+168+548 -> 39795 | L17: 39795 | M17: 3316.25 | N17: =10805+1345+4368+6173+14929+2698+953+352+2370 -> 43993 | P17: 43993 | Q17: 3666.083333 | R17: =4410+1633+10963+5210+14512+1736 -> 38464 | T17: 38464 | U17: =T17/11 -> 3496.727273
A18: Mateřská škola, Praha 8, Poznaňská 32 | B18: Poznaňská 32/ čp. 462, 181 00 Praha 8 – Bohnice
B19: odběrné místo: 8110666494 zákaznický účet: 11304131 | C19: C02D | E19: není | F19: =4349+7741 -> 12090 | H19: 12090 | I19: 1007.5 | J19: =4902+7463 -> 12365 | L19: 12365 | M19: 1030.416667 | N19: =4718+7792 -> 12510 | P19: 12510 | Q19: 1042.5 | R19: =4841 -> 4841 | T19: 4841 | U19: =T19/5 -> 968.2
B20: odběrné místo: 8110666483 zákaznický účet: 11304123 | C20: C02D | E20: není | F20: =8425+14115 -> 22540 | H20: 22540 | I20: 1878.333333 | J20: =8876+12933 -> 21809 | L20: 21809 | M20: 1817.416667 | N20: =8177+10806 -> 18983 | P20: 18983 | Q20: 1581.916667 | R20: =6714 -> 6714 | T20: 6714 | U20: =T20/5 -> 1342.8
B21: odběrné místo: 8110666454 zákaznický účet: 11304133 | C21: C02D | E21: není | F21: =3581+6870 -> 10451 | H21: 10451 | I21: 870.9166667 | J21: =4354+7490 -> 11844 | L21: 11844 | M21: 987 | N21: =4736+8533 -> 13269 | P21: 13269 | Q21: 1105.75 | R21: =5302 -> 5302 | T21: 5302 | U21: =T21/5 -> 1060.4
B22: odběrné místo: 8110751738 zákaznický účet: 30044730 | C22: C02D | E22: není | F22: =2118+4783 -> 6901 | H22: 6901 | I22: 575.0833333 | J22: =3032+3607 -> 6639 | L22: 6639 | M22: 553.25 | N22: =2281+2333 -> 4614 | P22: 4614 | Q22: 384.5 | R22: =1450 -> 1450 | T22: 1450 | U22: =T22/5 -> 290
A23: Mateřská škola, Praha 8, Řešovská 8 | B23: Řešovská 8/ čp. 490, 181 00 Praha 8 – Bohnice | C23: C02D | E23: není | F23: =1279+3333+6992+1679+5675+11415 -> 30373 | H23: 30373 | I23: 2531.083333 | J23: =1026+3469+6976+1691+6142+12265 -> 31569 | L23: 31569 | M23: 2630.75 | N23: =1036+3759+7507+1583+6192+11197 -> 31274 | P23: 31274 | Q23: 2606.166667 | R23: =965+3774+6825 -> 11564 | T23: 11564 | U23: =T23/5 -> 2312.8
A24: Mateřská škola, Praha 8, Krynická 2 | B24: Krynická 2/ čp. 490, 181 00 Praha 8 – Troja
B25: odběrné místo: 8110326885 zákaznický účet: 30139890 | C25: C02d | E25: není | F25: =11218+22065 -> 33283 | H25: 33283 | I25: 2773.583333 | J25: =12134+23081 -> 35215 | L25: 35215 | M25: 2934.583333 | N25: =12952+22027 -> 34979 | P25: 34979 | Q25: 2914.916667 | R25: =12434 -> 12434 | T25: 12434 | U25: =T25/5 -> 2486.8
B26: odběrné místo: 8110326875 zákaznický účet: 30154048 | C26: C02d | E26: není | F26: =4502+8341 -> 12843 | H26: 12843 | I26: 1070.25 | J26: =4588+8237 -> 12825 | L26: 12825 | M26: 1068.75 | N26: =4613+7896 -> 12509 | P26: 12509 | Q26: 1042.416667 | R26: =4457 -> 4457 | T26: 4457 | U26: =T26/5 -> 891.4
B27: odběrné místo: 8110326898 zákaznický účet: 30143299 | C27: C0cd | E27: není | F27: =2751+4790 -> 7541 | H27: 7541 | I27: 628.4166667 | J27: =2634+5069 -> 7703 | L27: 7703 | M27: 641.9166667 | N27: =2724+4841 -> 7565 | P27: 7565 | Q27: 630.4166667 | R27: =2733 -> 2733 | T27: 2733 | U27: =T27/5 -> 546.6
A28: Mateřská škola, Praha 8, Libčická 6 | B28: Libčická 6/ čp. 398, 181 00 Praha 8 – Čimice | C28: C2 | E28: není | F28: =2244+1809+1954+1753+1830+1819+812+862+1820+2266+2357+2032 -> 21558 | H28: 21558 | I28: 1796.5 | J28: =2287+1848+1888+1740+1829+1820+721+822+2135+2293+2491+2270 -> 22144 | L28: 22144 | M28: 1845.333333 | N28: =2525+1931+1980+2055+2137+1887+1005+1248+2151+2349+2311+2504 -> 24083 | P28: 24083 | Q28: 2006.916667 | R28: =2417+2038+1852+1880+1870+1919+610+795+2028+2435+2357+2474 -> 22675 | T28: 22675 | U28: =T28/12 -> 1889.583333
A29: Základní škola a mateřská škola, Praha 8, Lyčkovo náměstí 6 | B29: Lyčkovo náměstí 6/ čp. 460, 186 00 Praha 8 - Karlín | C29: C2C4 | E29: není | F29: =1870+52612+37631.25+2003.75+15095.5 -> 109212.5 | H29: 109212.5 | I29: =H29/5 -> 21842.5 | J29: =52683.75+1431.25+10782.5+51206+1983.3+16822.75 -> 134909.55 | L29: 134909.55 | M29: 11242.4625 | N29: =36575+1416.6+12016.25+2297+52847.6+17116.75 -> 122269.2 | P29: 122269.2 | Q29: 10189.1 | R29: =1640.8+37748.3+12226.25 -> 51615.35 | T29: 51615.35 | U29: =T29/7 -> 7373.621429
A30: Základní škola a mateřská škola Petra Strozziho, Praha 8, Za Invalidovnou 3 | B30: Za Invalidovnou 3/ čp. 579, 186 00 Praha 8 – Karlín | F30: =9145+7135+7452+6185+5947+5655+3241+3828+6044+8251+9234+7755+11100+29430 -> 120402 | H30: 120402 | I30: 10033.5 | J30: =9266+6942+7488+6790+6401+5646+3970+7300+8263+9667+8413+33903+10435+5512+15247+31230+24638+136+50 -> 201297 | K30: =7657+2792 -> 10449 | L30: 211746 | M30: =L30/12 -> 17645.5 | N30: =7129+7851+6634+6560+33900+14610+6880+15978+17100+15255+9629+6768+5482+870+2057+6019+9210+6688+10412 -> 189032 | P30: 189032 | Q30: 15752.66667 | R30: =17129+15213+6548+7474+3107+6181+9032+6309+8725+14104+13310+13429+22635+4685+14952+17467+17703+15558 -> 213561 | T30: 213561 | U30: 17796.75
A31: Základní škola, Praha 8, Palmovka 8 | B31: Palmovka 8/ čp. 468, 180 00 Praha 8 – Libeň, | C31: C02d | E31: není | F31: =24145+5522+20331+1487+3852+15890 -> 71227 | H31: 71227 | I31: 5935.583333 | J31: =20053+5447+24409+3866+14568.5+17031 -> 85374.5 | L31: 85374.5 | M31: 7114.541667 | N31: =23943+26137+5813+2170+1996+1958+1730+16364+12832 -> 92943 | P31: 92943 | Q31: 7745.25 | R31: =1883+1896+1956+2028+2197+2126+381+22850+24500+577+2377+2028+2055+1726+14622 -> 83202 | T31: 83202 | U31: 6933.5
A32: Základní škola Bohumila Hrabala, Praha 8, Zenklova 52 | B32: Zenklova 52/ čp. 26, 180 00 Praha 8 - Libeň
B33: odběrné místo: 8110207507 zákaznický účet: 30093748 | C33: C45d | E33: chybí specifikace | F33: =65062+684+786+1725+2133+2170+1777 -> 74337 | G33: =5261+3433+3895+8508+10965+11433+9673 -> 53168 | H33: 127505 | J33: =2352+1759+2075+2009+1855+1460+666+666+1807+2025+2334+1860 -> 20868 | K33: =12187+9062+10789+10759+9427+8313+3349+3306+9768+10453+11304+9385 -> 108102 | L33: 128970 | N33: =2200+1693+2097+2159+1836+1794+656+728+1801+2031+2100+1892 -> 20987 | O33: =11096+8695+10840+10090+8988+7679+3313+3679+10026+10851+10669+9398 -> 105324 | P33: 126311 | Q33: 10525.91667 | R33: =2069+2114+1859+1521+1490+1212+652+747+1523+1892+2258+2073 -> 19410 | S33: =10718+9740+8992+9871+9322+8247+3367+3677+9288+10729+10347+9390 -> 103688 | T33: 123098 | U33: 10258.16667
B34: odběrné místo: 8110216436 zákaznický účet: 1100 1345 | E34: chybí specifikace | F34: =98360+73920 -> 172280 | H34: 172280 | I34: 14356.66667 | J34: =83240+6473+9851+10164+16434+16860+18049+15392 -> 176463 | L34: 176463 | M34: 14705.25 | N34: =18297+10982+3732+2810+2550+1922+1838+1884+2924+3129+3078+2740 -> 55886 | O34: =3838+14222+12607+12421+12503+9308+9540+13726+14240+15171+13796 -> 131372 | P34: 187258 | Q34: 15604.83333 | R34: =2864+2800+2494+2744+2656+2387+1796+1858+2908+3199+3300+2985 -> 31991 | S34: =15595+14315+13056+12908+12705+12530+9080+9329+13432+14480+14568+13773 -> 155771 | T34: 187762 | U34: 15646.83333
A35: Základní škola a mateřská škola, Praha 8, U Školské zahrady 4 | B35: U Školské zahrady 4/ čp. 1030, 182 00 Praha 8 - Kobylisy | C35: C02d / C25d | E35: chybí specifikace | F35: =17900+123+330+43+17372+246 -> 36014 | G35: =5978 -> 5978 | H35: 41992 | I35: 3499.333333 | J35: =35+14316+191+14111+2920+32+6+200+36 -> 31847 | K35: =4928+4965+1028 -> 10921 | L35: 42768 | M35: 3564 | N35: =13973+30+182+52+8+17588 -> 31833 | O35: =4917+6506 -> 11423 | P35: 43256 | Q35: 3604.666667 | R35: =10072+2835+1718 -> 14625 | S35: =3726+1049+576 -> 5351 | T35: 19976 | U35: 1664.666667
A36: Základní škola a mateřská škola Na Slovance, Praha 8, Bedřichovská 1 | B36: Bedřichovská 1/ čp. 1960, 182 00 Praha 8 – Libeň
B37: odběrné místo: 8110330069 zákaznický účet: | C37: C02d | E37: není | F37: =5666 -> 5666 | H37: 5666 | I37: =H37/8 -> 708.25 | J37: =3364 -> 3364 | L37: 3364 | M37: =L37/4 -> 841 | N37: =5543+3209 -> 8752 | P37: 8752 | Q37: 729.3333333 | R37: =5434 -> 5434 | T37: 5434 | U37: =T37/8 -> 679.25
B38: odběrné místo: 8110330080 zákaznický účet: | C38: C02d | E38: není | F38: =3813 -> 3813 | H38: 3813 | I38: =H38/8 -> 476.625 | J38: =2447 -> 2447 | L38: 2447 | M38: =L38/4 -> 611.75 | N38: =4031+2923 -> 6954 | P38: 6954 | Q38: 579.5 | R38: =4948 -> 4948 | T38: 4948 | U38: =T38/8 -> 618.5
B39: odběrné místo: 8110214946 zákaznický účet: 10040528 | C39: C45d | E39: chybí specifikace | F39: =10891+6814+6979+5798+4637+4285+2510+2849+5133+9328+11394+10475 -> 81093 | H39: 81093 | I39: 6757.75 | J39: =11506+8627+9093+7883+6917+5736+3668+3928+7715+9002+10685+10372 -> 95132 | L39: 95132 | M39: 7927.666667 | N39: =11693+8530+9254+7386+6345+1558+564+634+1382+1948+2376+2290 -> 53960 | O39: =5697+2822+3297+7255+9226+11561+10827 -> 50685 | P39: 104645 | Q39: 8720.416667 | R39: =2500+2006+1776+1478+1212+1000+564+661+1273+1830+2320+2289 -> 18909 | S39: =11468+10328+9194+8160+6973+5939+2934+3288+7107+10275+11351+11488 -> 98505 | T39: 117414 | U39: 9784.5
B40: odběrné místo: 8110214931 zákaznický účet: 10040527 | C40: C02d | E40: není | F40: =5380+4087+4858+4070+2392+2342+257+378+2159+2251+2355+1783 -> 32312 | H40: 32312 | I40: 2692.666667 | J40: =2168+1520+2154+2281+2027+1986+200+262+2130+2243+2321+1737 -> 21029 | L40: 21029 | M40: 1752.416667 | N40: =1932+1686+2337+1951+1653 -> 9559 | P40: 9559 | Q40: =P40/5 -> 1911.8 | T40: 0 | U40: 0
A41: Základní škola, Praha 8, Burešova 14 | B41: Burešova 14/ čp. 1130, 182 00 Praha 8 – Kobylisy | C41: Co3d | E41: není | F41: =23824+17524+20940+16813+17440+17493+4188+5908+15854+21404+24343+19830 -> 205561 | H41: 205561 | I41: 17130.08333 | L41: 0 | M41: 0 | N41: =30817+20444+23569+21977+19772+18607+4680+5679+21812+22487+25506+23381 -> 238731 | P41: 238731 | Q41: 19894.25 | R41: =26288+24321+21515+22817+21686+22397+4478+7122+22643+26637+28359+22720 -> 250983 | T41: 250983 | U41: 20915.25
A42: Základní škola, Praha 8, Žernosecká 3 | B42: Žernosecká 3/ čp. 1597, 182 00 Praha 8 – Kobylisy | C42: C03d | E42: není | F42: =15447+11675+13496+11068+11668+11527+4169+4051+10733+13793+15422+11837 -> 134886 | H42: 134886 | I42: 11240.5 | J42: =14001+10348+12008+11945+11899+11330+3465+4051+11748+12602+14098+12173 -> 129668 | L42: 129668 | M42: 10805.66667 | N42: =13618+10254+12391+11024+11134+10210+3513+3843+11555+13242+14852+12723 -> 128359 | P42: 128359 | Q42: 10696.58333 | R42: =14553+12782+10899+11141+10976+10373+3147+4430+9978+10543+11370+10004 -> 120196 | T42: 120196 | U42: 10016.33333
A43: Základní škola, Praha 8, Hovorčovická 11 | B43: Hovorčovická 11/ čp. 1281, 182 00 Praha 8 – Kobylisy | C43: C02d | E43: není | F43: =14146+8688+7699+7412+8386+8519+6095+6157+12827+16101+18233+29202+14097+2691+9 -> 160262 | H43: 160262 | I43: 13355.16667 | J43: =16604+13217+2606+11970+3028+11816+3118+10378+3087+9+10564+2366+5553+558+5393+984+12684+3631+13394+3568+15845+3623+12435+2604 -> 169035 | L43: 169035 | M43: 14086.25 | N43: =15192+3274+11411+3239+12049+4191+13018+1745+13856+4+11987+6671+7585+16689+17888+19365+16815 -> 174979 | P43: 174979 | Q43: 14581.58333 | R43: =19024+16764+15014+15233+14872+14118+7391+8346+1+17928+18872+15609 -> 163172 | T43: 163172 | U43: =T43/11 -> 14833.81818
A44: Základní škola, Praha 8, Na Šutce 28 | B44: Na Šutce 28/ čp. 440, 182 00 Praha 8 - Troja | C44: C02d | E44: není | F44: =29240+6127+8729+14227+4393 -> 62716 | H44: 62716 | I44: 5226.333333 | J44: =26629+35536+5558+6215+4740+5932+5795+5612+5776+1976+2126+7338+7064+7405+6122 -> 133824 | L44: 133824 | M44: 11152 | N44: =24045+43015+6771+5273+6668+6938+7324+7153+1966+2154+7681+6758+6370+5632 -> 137748 | P44: 137748 | Q44: 11479 | R44: =19896+6001+6801+7584+7022+7169+7069+7460+1777+2372+7480+6379+7288+6148 -> 100446 | T44: 100446 | U44: =T44/11 -> 9131.454545
A45: Základní škola a mateřská škola Ústavní, Praha 8, Hlivická 1 | B45: Hlivická 1/ čp. 400, 181 00 Praha 8 – Bohnice
B46: odběrné místo: 8110670278 zákaznický účet: 30100516 | C46: C02d | E46: není | F46: =926+1477 -> 2403 | H46: 2403 | I46: 200.25 | J46: =1289+1805 -> 3094 | L46: 3094 | M46: 257.8333333 | N46: =1228+2522 -> 3750 | P46: 3750 | Q46: 312.5 | R46: =1747 -> 1747 | T46: 1747 | U46: =T46/5 -> 349.4
B47: odběrné místo: 8110670249 zákaznický účet: 11306262 | C47: C02d | E47: není | F47: 13763 | H47: 13763 | I47: =H47/7 -> 1966.142857 | J47: =11084+14319 -> 25403 | L47: 25403 | M47: 2116.916667 | N47: =9737+14180 -> 23917 | P47: 23917 | Q47: 1993.083333 | R47: =9820 -> 9820 | T47: 9820 | U47: =T47/5 -> 1964
B48: odběrné místo: 8110670147 zákaznický účet: 10059344 | C48: C26d | E48: chybí specifikace | F48: =34156+28968+25714+20735+15349+15161+6658+8260+18199+27571+33254+29749 -> 263774 | G48: =10587+10406+8802+7054+7246+5639+2938+3461+6439+10474+11119+11435 -> 95600 | H48: 359374 | I48: 29947.83333 | J48: =34183+27323+29646+23559+21113+15925+6510+5759+15936+22309+26712+25101 -> 254076 | K48: =11348+9283+9911+8401+8020+5761+2824+2474+5213+7852+9730+9087 -> 89904 | L48: 343980 | M48: 28665 | N48: =27726+21967+23185+18533+18024+14817+6144+7332+17723+22446+24762+24178 -> 226837 | O48: =8945+7047+6906+6936+5953+4509+2689+3106+4916+6709+9342+9432 -> 76490 | P48: 303327 | Q48: 25277.25 | R48: =28178+24485+23270+20826+16622+11861+5983+6644+19985+29233+32007+32691 -> 251785 | S48: =9528+8516+8650+7658+6275+4023+2645+3266+8463+10593+9594+10680 -> 89891 | T48: 341676 | U48: =T48/12 -> 28473
B49: odběrné místo: 8110671575 zákaznický účet: 10059454 | C49: C02d | E49: není | F49: =1361+1336 -> 2697 | H49: 2697 | I49: 224.75 | J49: =864+1977 -> 2841 | L49: 2841 | M49: 236.75 | N49: =1305+1659 -> 2964 | P49: 2964 | Q49: 247 | R49: =1101 -> 1101 | T49: 1101 | U49: =T49/5 -> 220.2
A50: Základní škola a mateřská škola, Praha 8, Dolákova 1 | B50: Dolákova 1/ čp. 555, 181 00 Praha 8 – Bohnice | C50: C03d-C45d C02d | E50: není | F50: =12194+9310+12436+11286+11308+10294+3347+5037+12918+13933+14926+10839+3176+7304+2440+1619+1416+2185+2704+2876+2709 -> 154257 | H50: 154257 | I50: 12854.75 | J50: =13344+9939+11164+14899+13446+12711+7036+6350+14599+15354+14461+12091+2970+2280+2290+2125+1984+1834+1330+1087+2224+2477+2694+2622 -> 171311 | L50: 171311 | M50: 14275.91667 | N50: =14489+11218+14253+14649+2646+2382+791+1149+2759+3101+2493+2249+2858+2170+2176+1983+1828+1599+993+1020+2187+2569+2848+2996 -> 97406 | O50: =1072+10854+3613+5677+13658+13917+12914+11671 -> 73376 | P50: 170782 | Q50: =P50/7 -> 24397.42857 | R50: =2847+2912+2906+2744+2360+2097+747+1560+2740+2702+3283+2191+994+2980+2587+2556+2080+2066+1702+935+1145+2046+2925+3132+3000 -> 57237 | S50: =14666+14470+14440+12528+11649+10217+3542+7536+13847+13656+14667+10429+4730 -> 146377 | T50: 203614 | U50: 16967.83333
A51: Základní škola Mazurská, Praha 8, Svídnická 1a | B51: Svídnická 1a/ čp. 599, 181 00 Praha 8 - Troja | C51: C45d | F51: =17558+13122+15564+13249+14787+13792+4808+6007+13727+16521+18216+13591 -> 160942 | H51: 160942 | I51: =H51/12 -> 13411.83333 | J51: =17676+12394+13558+13604+13961+10435+4169+5382+15239+17624+19370+14954 -> 158366 | L51: 158366 | M51: 13197.16667 | N51: =17310+12894+15450+14127+14071+12011+6228+7785+15166+16373+17525+15066 -> 164006 | P51: 164006 | Q51: 13667.16667 | R51: =17559+15450+14019+13607+13821+12683+5372+6315+15595+15563+16996+15250 -> 162230 | T51: 162230 | U51: 13519.16667
A52: Základní škola, Praha 8, Glowackého 6 | B52: Glowackého 6/ čp. 555, 181 00 Praha 8 – Troja | C52: C02d | F52: =24530+20127+22190+16540+16457+14789+6509+7153+13545+17966+19949+15979 -> 195734 | H52: 195734 | I52: 16311.16667 | J52: =18854+14820+16498+15968+15139+12932+7566+7653+16193+18489+20506 -> 164618 | L52: 164618 | M52: =L52/11 -> 14965.27273 | N52: =19816+15626+18107+16744+15413+14242+4316+7287+23326+18275+19740+17936 -> 190828 | P52: 190828 | Q52: 15902.33333 | R52: =20108+18282+16562+16678+16185+14836+5102+6944+17501+18149+20201 -> 170548 | T52: 170548 | U52: =T52/11 -> 15504.36364
A53: Základní škola, Praha 8, Libčická 10 | B53: Libčická 10/ čp. 658, 181 00 Praha 8 – Čimice | C53: B4a/SE | D53: 06:00-22:00 | E53: 22:00-06:00 (do 31.3.2014) | F53: =22639+17563+17794+14398+12671+12040+4232+4038+10466+14636+17466+13853 -> 161796 | G53: =2682+2928+2624+2701+2393+2128+1291+1108+1848+2029+1962+2119 -> 25813 | H53: 187609 | I53: 15634.08333 | J53: =18344+12845+14479+13751+13198+8241+2577+4268+12262+19462+21871+19707 -> 161005 | K53: =2276+1793+2143+1977+2019+1609+869+1012+3094+5074+4869+4070 -> 30805 | L53: 191810 | M53: 15984.16667 | N53: =22634+16369+17552+18760+17361+13081+4405+6081+17636+20029+21903+19795 -> 195606 | O53: =3756+3127+3125 -> 10008 | P53: 205614 | Q53: 17134.5 | R53: =22017+19748+17312+16303+15023+12710+3529+4648+16327+18945+21383+19461 -> 187406 | T53: 187406 | U53: 15617.16667
A54: Servisní středisko pro správu svěřeného majetku MČ Praha 8 | B54: U Synagogy 2/ čp. 236, 180 00 Praha 8 – Libeň
B55: odběrné místo: 8110664930 | F55: =266+47+306+211+350+330+272+254+217+299+454+147 -> 3153 | H55: 3153 | I55: 262.75 | J55: =215+206+83+240+241+154+159+73+198+305+323+275 -> 2472 | L55: 2472 | M55: 206 | N55: =163+120+216+360+329+723+247+211+270+645+525+445 -> 4254 | P55: 4254 | Q55: 354.5 | R55: =135+258+231+274+356+367+170+349+328+767+1492 -> 4727 | T55: 4727 | U55: =T55/11 -> 429.7272727
B56: odběrné místo: 8110664957 | F56: =8419+7694+8293+6016+5918+5281+4857+3947+5003+8588+8420+8474 -> 80910 | H56: 80910 | I56: 6742.5 | J56: =9037+6496+7903+7539+6590+5171+3709+3700+5915+4777+9441+11616 -> 81894 | L56: 81894 | M56: 6824.5 | N56: =4906+4677+5465+6117+5186+5320+3705+3774+4788+6595+7415+6171 -> 64119 | P56: 64119 | Q56: 5343.25 | R56: =6316+6177+6266+6250+5393+5087+3192+4128+4159+6144+11376 -> 64488 | T56: 64488 | U56: =T56/11 -> 5862.545455
B57: odběrné místo: 8110780308 | F57: 0 | H57: 0 | I57: 0 | J57: 0 | L57: 0 | M57: 0 | N57: =3025 -> 3025 | P57: 3025 | Q57: =P57/1 -> 3025 | R57: 0 | T57: 0 | U57: 0
B58: odběrové místo: 8110666510 | F58: =302+825 -> 1127 | H58: 1127 | I58: 93.91666667 | J58: =523+593 -> 1116 | L58: 1116 | M58: 93 | N58: =375+270 -> 645 | P58: 645 | Q58: =P58/12 -> 53.75 | R58: =169 -> 169 | T58: 169 | U58: =T58/5 -> 33.8
B59: odběrné místo: 8110674241 | F59: =129 -> 129 | G59: =71 -> 71 | H59: 200 | I59: =H59/4 -> 50 | J59: =151+20 -> 171 | K59: =84+23 -> 107 | L59: 278 | M59: 23.16666667 | N59: =7 -> 7 | O59: =8 -> 8 | P59: 15 | Q59: =P59/1 -> 15 | R59: 0 | T59: 0 | U59: 0
B60: odběrové místo: 8110671623 | F60: =150 -> 150 | G60: =734 -> 734 | H60: 884 | I60: =H60/6 -> 147.3333333 | J60: =140 -> 140 | K60: =691 -> 691 | L60: 831 | M60: =L60/7 -> 118.7142857 | N60: =125+147 -> 272 | O60: =618+720 -> 1338 | P60: 1610 | Q60: 134.1666667 | R60: =131 -> 131 | S60: =636 -> 636 | T60: 767 | U60: 63.91666667
B61: odběrové místo: 8110177505 | F61: =206+347 -> 553 | H61: 553 | I61: 46.08333333 | J61: =343+194 -> 537 | L61: 537 | M61: 44.75 | N61: =157+489 -> 646 | P61: 646 | Q61: 53.83333333 | R61: =391 -> 391 | T61: 391 | U61: =T61/6 -> 65.16666667
B62: odběrové místo: 8110168559 | F62: =260 -> 260 | G62: =122 -> 122 | H62: 382 | I62: =H62/6 -> 63.66666667 | J62: =202 -> 202 | K62: =92 -> 92 | L62: 294 | M62: 24.5 | N62: 0 | O62: 0 | P62: 0 | Q62: 0 | T62: 0 | U62: 0
B63: odběrové místo: 8110400121 | F63: =614+494 -> 1108 | H63: 1108 | I63: 92.33333333 | J63: =600+418 -> 1018 | L63: 1018 | M63: 84.83333333 | N63: =511+436 -> 947 | P63: 947 | Q63: 78.91666667 | R63: =520 -> 520 | T63: 520 | U63: =T63/5 -> 104
B64: odběrové místo: 8110776132 | F64: =30+17 -> 47 | H64: 47 | I64: 3.916666667 | J64: =15+17 -> 32 | L64: 32 | M64: 2.666666667 | N64: =15+16 -> 31 | P64: 31 | Q64: 2.583333333 | T64: 0 | U64: 0
B65: odběrové místo: 8110200213 číslo účtu: 30152579 | C65: C02d | E65: není | F65: =14434+9136 -> 23570 | H65: 23570 | I65: 1964.166667 | J65: =16188+8342 -> 24530 | L65: 24530 | M65: 2044.166667 | N65: =15029+8511 -> 23540 | P65: 23540 | Q65: 1961.666667 | R65: =15324 -> 15324 | T65: 15324 | U65: =T65/4 -> 3831
B66: odběrové místo: 8110753733 | H66: 0 | I66: 0 | L66: 0 | M66: 0 | N66: =7 -> 7 | P66: 7 | Q66: =P66/3 -> 2.333333333 | T66: 0 | U66: 0
B67: odběrové místo: 8110075877 | H67: 0 | I67: 0 | L67: 0 | M67: 0 | P67: 0 | Q67: 0 | R67: =1+290 -> 291 | T67: 291 | U67: =T67/6 -> 48.5
B68: odběrové místo: 8110192995 | F68: =3510+2025 -> 5535 | H68: 5535 | I68: 461.25 | J68: =2842+1973 -> 4815 | L68: 4815 | M68: 401.25 | N68: =2773+2303 -> 5076 | P68: 5076 | Q68: 423 | R68: =3259 -> 3259 | T68: 3259 | U68: =T68/8 -> 407.375
B69: odběrové místo: 8110828906 | F69: =88+338 -> 426 | G69: =1309+4261 -> 5570 | H69: 5996 | I69: 499.6666667 | J69: =308+363 -> 671 | K69: =3866+3750 -> 7616 | L69: 8287 | M69: 690.5833333 | N69: =326+547 -> 873 | O69: =3363+3717 -> 7080 | P69: 7953 | Q69: 662.75 | R69: =489 -> 489 | S69: =3322 -> 3322 | T69: 3811 | U69: =T69/5 -> 762.2
B70: odběrové místo: 8110326909 | F70: =104+470 -> 574 | H70: 574 | I70: 47.83333333 | J70: =259+520 -> 779 | L70: 779 | M70: 64.91666667 | N70: =292+492 -> 784 | P70: 784 | Q70: 65.33333333 | R70: =279 -> 279 | T70: 279 | U70: =T70/5 -> 55.8
B71: odběrné místo: 8110210964 | F71: =1557+634 -> 2191 | H71: 2191 | I71: 182.5833333 | J71: =947+796 -> 1743 | L71: 1743 | M71: 145.25 | N71: =1191+852 -> 2043 | P71: 2043 | Q71: 170.25 | R71: =1005+172 -> 1177 | T71: 1177 | U71: =T71/11 -> 107
B72: Odběrné místo: 8110181490 | F72: =4105+6290 -> 10395 | H72: 10395 | I72: 866.25 | J72: =5390+5224 -> 10614 | L72: 10614 | M72: 884.5 | N72: =4476+4521 -> 8997 | P72: 8997 | Q72: 749.75 | R72: =3661 -> 3661 | T72: 3661 | U72: =T72/6 -> 610.1666667
A73: Úřad MČ Praha 8 – oddělení hospodářské správy, pracoviště Zenklova 1/35 | B73: Zenklova 1/35, 180 00 Praha 8 - Libeň
B74: číslo zákaznického účtu: 10038680, číslo odběrného místa: 8110194476 | C74: C02d | E74: není | F74: =4171+3347 -> 7518 | H74: 7518 | I74: 626.5 | J74: =4676+3402 -> 8078 | L74: 8078 | M74: 673.1666667 | N74: =3569+863+2639 -> 7071 | P74: 7071 | Q74: 589.25 | R74: =3718 -> 3718 | T74: 3718 | U74: =T74/8 -> 464.75
B75: číslo zákaznického účtu: 10038681, číslo odběrného místa: 8110194490 | C75: C02d | E75: není | F75: 0 | H75: 0 | I75: 0 | J75: 0 | L75: 0 | M75: 0 | N75: 0 | P75: 0 | Q75: 0 | R75: 0 | T75: 0 | U75: 0
B76: číslo zákaznického účtu: 10038682, číslo odběrného místa: 8110194505 | C76: C02d | E76: není | F76: =1786+1380 -> 3166 | H76: 3166 | I76: 263.8333333 | J76: =1928+1272 -> 3200 | L76: 3200 | M76: 266.6666667 | N76: =1431+1359 -> 2790 | P76: 2790 | Q76: 232.5 | R76: =1915 -> 1915 | T76: 1915 | U76: =T76/7 -> 273.5714286
B77: číslo zákaznického účtu: 10038683, číslo odběrného místa: 8110194518 | C77: C02d | E77: není | F77: =3018+1893 -> 4911 | H77: 4911 | I77: 409.25 | J77: =2645+1597 -> 4242 | L77: 4242 | M77: 353.5 | N77: =1798+435+1703 -> 3936 | P77: =N77+O77 -> 3936 | Q77: 328 | R77: =2401 -> 2401 | T77: 2401 | U77: =T77/7 -> 343
B78: číslo zákaznického účtu: 10038684, číslo odběrného místa: 8110194532 | C78: C02d | E78: není | F78: =1634+1067 -> 2701 | H78: 2701 | I78: 225.0833333 | J78: =1492+1123 -> 2615 | L78: 2615 | M78: 217.9166667 | N78: =1267+1178 -> 2445 | P78: 2445 | Q78: 203.75 | R78: =1660 -> 1660 | T78: 1660 | U78: =T78/7 -> 237.1428571
B79: číslo zákaznického účtu: 10038685, číslo odběrného místa: 8110194546 | C79: C03d | E79: není | F79: =32198+23141 -> 55339 | H79: 55339 | I79: 4611.583333 | J79: =32326+21609 -> 53935 | L79: 53935 | M79: 4494.583333 | N79: =23646+21024 -> 44670 | P79: 44670 | Q79: 3722.5 | R79: =29617 -> 29617 | T79: 29617 | U79: =T79/7 -> 4231
A80: Úřad MČ Praha 8 – oddělení hospodářské správy, pracoviště Zenklova 147/43 | B80: Zenklova 147/43, 180 00 Praha 8 - Libeň | D80: 6:00-22:00 | E80: 22:00-6:00 | F80: =26512+22431+25924+23973+23323+24685+26760+26440+25804 -> 225852 | G80: =6711+6945+8130+7206+7455+7480+7340+7170+7639 -> 66076 | H80: 291928 | I80: =H80/9 -> 32436.44444 | J80: =29850+25029+25981+24488+23806+23106+24489+23671+23059+25312+25218 -> 274009 | K80: =7639+6638+7350+7398+7490+7202+7595+7572+6935+7209+7206 -> 80234 | L80: 354243 | M80: =L80/10 -> 35424.3 | N80: =27462+22894+24038+23664+22463+21901+24365+21440+23038+23851+23484+25366 -> 283966 | O80: =7139+6506+7127+7074+7132+7019+7569+7101+6860+7303+6742+6954 -> 84526 | P80: 368492 | Q80: 30707.66667 | R80: =25585+22941+23837+22447+21198+22054+1254+23406+21505+22971+22940 -> 230138 | S80: =6814+6076+6866+6726+6911+6738+6280+7220+6370+6417+6003 -> 72421 | T80: 302559 | U80: =T80/11 -> 27505.36364
A81: Úřad MČ Praha 8 – oddělení hospodářské správy, pracoviště Grábova vila | B81: Na Košince 502/1, 180 00 Praha 8 - Libeň
B82: číslo zákaznického účtu: 11341017, číslo odběrného místa: 8110708210 | C82: C02d | E82: není | F82: =45000+30400 -> 75400 | H82: 75400 | I82: 6283.333333 | J82: =42720+27904+7460 -> 78084 | L82: 78084 | M82: 6507 | N82: =7685+6079+6569+6428+6577+6427+5106+5806+7392+8535+8214+7653 -> 82471 | P82: 82471 | Q82: 6872.583333 | R82: =7880+6863+6603+5902+5329+5350+4964+5682+5006+6922+6205 -> 66706 | T82: 66706 | U82: =T82/11 -> 6064.181818
B83: číslo zákaznického účtu: 11274162, číslo odběrného místa: 8110206963 | C83: C02d | E83: není | F83: =775+535 -> 1310 | H83: 1310 | I83: 109.1666667 | J83: =752+540 -> 1292 | L83: 1292 | M83: 107.6666667 | N83: =567+138+473 -> 1178 | P83: 1178 | Q83: 98.16666667 | R83: =668 -> 668 | T83: 668 | U83: =T83/8 -> 83.5
A84: Úřad MČ Praha 8 – oddělení hospodářské správy, pracoviště U Meteoru 19 | B84: U Meteoru 19, 180 00 Praha 8 - Libeň | C84: B12 | F84: =12051+5005+1885+1306+1243+1378+2471+7232+7191+10185 -> 49947 | G84: =61353+28869+10680+6652+6300+6992+12317+36076+39339+53520 -> 262098 | H84: 312045 | I84: =H84/10 -> 31204.5 | J84: =10886+10378+10520+5539+3061+2050+1237+1273+3216+5596+9589 -> 63345 | K84: =58505+52559+53502+28491+16126+10663+6415+6540+16597+30740+48856 -> 328994 | L84: 392339 | M84: =L84/11 -> 35667.18182 | N84: =10223+8328+6371+4156+3131+1225+1271+1153+1852+4932+7212+9418 -> 59272 | O84: =52847+42812+35028+22594+16571+6242+6384+5796+9233+25811+38411+47769 -> 309498 | P84: 368770 | Q84: 30730.83333 | R84: =10526+9259+7341+5427+2947+1304+1205+1134+2255+6368+7556 -> 55322 | S84: =51658+45995+38129+27631+14600+6447+6039+5771+11267+32484+37905 -> 277926 | T84: 333248 | U84: =T84/11 -> 30295.27273
A85: Úřad MČ Praha 8 – oddělení hospodářské správy, pracoviště Klapkova 26/3 | B85: Klapkova 26/3, 182 00 Praha 8 - Kobylisy | C85: C02d | E85: není | F85: =9564+14495 -> 24059 | H85: =F85+G85 -> 24059 | I85: 2004.916667 | J85: =11127+14921 -> 26048 | L85: 26048 | M85: 2170.666667 | N85: =11566+995+15408 -> 27969 | P85: 27969 | Q85: 2330.75 | R85: =12479 -> 12479 | T85: 12479 | U85: =T85/5 -> 2495.8
A86: Úřad MČ Praha 8 – oddělení hospodářské správy, pracoviště Čimická 780/61 | B86: Čimická 780/61, 181 00 Praha 8 - Čimice
B87: číslo zákaznického účtu: 30008645, číslo odběrného místa: 8110728423 | C87: C02d | E87: není | F87: =5643+14068 -> 19711 | H87: =F87+G87 -> 19711 | I87: 1642.583333 | J87: =8299+15896 -> 24195 | L87: 24195 | M87: 2016.25 | N87: =9377+2231+12045 -> 23653 | P87: 23653 | Q87: 1971.083333 | R87: =8469 -> 8469 | T87: 8469 | U87: =T87/5 -> 1693.8
B88: číslo zákaznického účtu: 11392814, číslo odběrného místa: 8110171104 | C88: C02d | E88: není | F88: =3866+6171 -> 10037 | H88: 10037 | I88: 836.4166667 | J88: =3640+6250 -> 9890 | L88: 9890 | M88: 824.1666667 | N88: =3687+904+5098 -> 9689 | P88: 9689 | Q88: 807.4166667 | R88: =3947 -> 3947 | T88: 3947 | U88: =T88/5 -> 789.4
B89: číslo zákaznického účtu: 11104212, číslo odběrného místa: 8110466782 | C89: C02d | E89: není | F89: =963+1100 -> 2063 | H89: 2063 | I89: 171.9166667 | J89: =650+1619 -> 2269 | L89: 2269 | M89: 189.0833333 | N89: =1822+417+2255 -> 4494 | P89: 4494 | Q89: 374.5 | R89: =1598 -> 1598 | T89: 1598 | U89: =T89/5 -> 319.6
A90: Úřad MČ Praha 8 – oddělení ICT služeb odboru kancelář starosty, kamerové systémy | B90: Zenklova 1/35, 180 00 Praha 8 - Libeň
B91: objekt Horňátecká, číslo zákaznického účtu: 30230391 | H91: 0 | I91: 0 | J91: 68.3 | L91: 68.3 | M91: 5.691666667 | N91: =169.71+186 -> 355.71 | P91: 355.71 | Q91: 29.6425 | R91: 181 | T91: 181 | U91: 15.08333333
B92: objekt Davídkova, číslo zákaznického účtu: 30233493 | H92: 0 | I92: 0 | J92: 19.7 | L92: 19.7 | M92: 1.641666667 | N92: =226.31+142 -> 368.31 | P92: 368.31 | Q92: 30.6925 | R92: 236 | T92: 236 | U92: 19.66666667
B93: objekt Sokolovská (městský mobiliář), číslo zákaznického účtu: 30233491 | H93: 0 | I93: 0 | J93: 20.04 | L93: 20.04 | M93: 1.67 | N93: =226.96+272 -> 498.96 | P93: 498.96 | Q93: 41.58 | R93: 376 | T93: 376 | U93: 31.33333333
B94: objekt V Mezihoří 3941, číslo zákaznického účtu: 30260596 | C94: C01d | H94: 0 | I94: 0 | L94: 0 | M94: 0 | N94: 78 | P94: 78 | Q94: 6.5 | R94: 326 | T94: 326 | U94: 27.16666667
B95: objekt V Mezihoří 3554k/4, číslo zákaznického účtu: 30260595 | C95: C01d | H95: 0 | I95: 0 | L95: 0 | M95: 0 | N95: 126 | P95: 126 | Q95: 10.5 | R95: 526 | T95: 526 | U95: 43.83333333
B96: objekt Vacínova, číslo zákaznického účtu: 30230600 | H96: 0 | I96: 0 | J96: 68.12 | L96: 68.12 | M96: 5.676666667 | N96: =204.88+146 -> 350.88 | P96: 350.88 | Q96: 29.24 | R96: 216 | T96: 216 | U96: 18
B97: objekt Sokolovská, číslo zákaznického účtu: 30230394 | H97: 0 | I97: 0 | J97: 68.47 | L97: 68.47 | M97: 5.705833333 | N97: =205.53+223 -> 428.53 | P97: 428.53 | Q97: 35.71083333 | R97: 332 | T97: 332 | U97: 27.66666667
B98: objekt Pomořanská, číslo zákaznického účtu: 30230398 | H98: 0 | I98: 0 | J98: 73.74 | L98: 73.74 | M98: 6.145 | N98: =136.26+250 -> 386.26 | P98: 386.26 | Q98: 32.18833333 | R98: =143 -> 143 | T98: 143 | U98: 11.91666667
B99: objekt Čimická, číslo zákaznického účtu: 30230397 | H99: 0 | I99: 0 | J99: 70.38 | L99: 70.38 | M99: 5.865 | N99: =133.62+317 -> 450.62 | P99: 450.62 | Q99: 37.55166667 | R99: 192 | T99: 192 | U99: 16
B100: objekt Čimická – 7. patro, číslo zákaznického účtu: 30254490 | C100: C01d | H100: 0 | I100: 0 | L100: 0 | M100: 0 | N100: 210 | P100: 210 | Q100: 17.5 | R100: 267 | T100: 267 | U100: 22.25
B101: objekt Poznaňská, číslo zákaznického účtu: 30206770 | C101: C02d | F101: 54 | H101: 54 | I101: 4.5 | J101: =190+337.58 -> 527.58 | L101: 527.58 | M101: 43.965 | N101: =208.42+381 -> 589.42 | P101: 589.42 | Q101: 49.11833333 | R101: 238 | T101: 238 | U101: 19.83333333
B102: objekt Tanvaldská, číslo zákaznického účtu: 30224021 | C102: C01d | H102: 0 | I102: 0 | J102: 162.58 | L102: 162.58 | M102: 13.54833333 | N102: =488.42+671 -> 1159.42 | P102: 1159.42 | Q102: 96.61833333 | R102: 523 | T102: 523 | U102: 43.58333333
B103: objekt Hovorčovická, číslo zákaznického účtu: 30230396 | H103: 0 | I103: 0 | J103: 75.11 | L103: 75.11 | M103: 6.259166667 | N103: =180.89+207 -> 387.89 | P103: 387.89 | Q103: 32.32416667 | R103: 184 | T103: 184 | U103: 15.33333333
B104: objekt Zenklova 3757k/3, číslo zákaznického účtu: 30261202 | C104: C01d | H104: 0 | I104: 0 | L104: 0 | M104: 0 | N104: 77 | P104: 77 | Q104: 6.416666667 | R104: 389 | T104: 389 | U104: 32.41666667
B105: objekt Krynická, číslo zákaznického účtu: 30254468 | C105: C01d | H105: 0 | I105: 0 | L105: 0 | M105: 0 | N105: 351 | P105: 351 | Q105: 29.25 | R105: 457 | T105: 457 | U105: 38.08333333
B106: objekt Bukolská, číslo zákaznického účtu: 30230236 | C106: C01d | H106: 0 | I106: 0 | J106: 168.31 | L106: 168.31 | M106: 14.02583333 | N106: =302.69+488 -> 790.69 | P106: 790.69 | Q106: 65.89083333 | R106: 292 | T106: 292 | U106: 24.33333333
B107: objekt Hnězdenská, číslo zákaznického účtu: 30254467 | C107: C01d | H107: 0 | I107: 0 | L107: 0 | M107: 0 | N107: 228 | P107: 228 | Q107: 19 | R107: 412 | T107: 412 | U107: 34.33333333
B108: objekt Písečná, číslo zákaznického účtu: 30223998 | C108: C01d | H108: 0 | I108: 0 | J108: 93.51 | L108: 93.51 | M108: 7.7925 | N108: =231.49+359 -> 590.49 | P108: 590.49 | Q108: 49.2075 | R108: 206 | T108: 206 | U108: 17.16666667
B109: objekt Křivenická - 7. patro, číslo zákaznického účtu: 30254491 | C109: C01d | H109: 0 | I109: 0 | L109: 0 | M109: 0 | N109: 281 | P109: 281 | Q109: 23.41666667 | R109: 387 | T109: 387 | U109: 32.25
B110: objekt Frýdlantská, číslo zákaznického účtu: 30255381 | C110: C01d | H110: 0 | I110: 0 | L110: 0 | M110: 0 | N110: 329 | P110: 329 | Q110: 27.41666667 | R110: 581 | T110: 581 | U110: 48.41666667
B111: objekt Frýdlantská - užitkový objekt, číslo zákaznického účtu: 30230601 | C111: C01d | H111: 0 | I111: 0 | J111: 193.62 | L111: 193.62 | M111: 16.135 | N111: =535.38+828 -> 1363.38 | P111: 1363.38 | Q111: 113.615 | R111: 634 | T111: 634 | U111: 52.83333333
B112: objekt Zelenohorská, číslo zákaznického účtu: 30254493 | C112: C01d | H112: 0 | I112: 0 | L112: 0 | M112: 0 | N112: 322 | P112: 322 | Q112: 26.83333333 | R112: 437 | T112: 437 | U112: 36.41666667
B113: objekt Šiškova, číslo zákaznického účtu: 30255357 | C113: C01d | H113: 0 | I113: 0 | L113: 0 | M113: 0 | N113: 346 | P113: 346 | Q113: 28.83333333 | R113: 624 | T113: 624 | U113: 52
B114: objekt Štětínská, číslo zákaznického účtu: 30254492 | C114: C01d | H114: 0 | I114: 0 | L114: 0 | M114: 0 | N114: 238 | P114: 238 | Q114: 19.83333333 | R114: 308 | T114: 308 | U114: 25.66666667
B115: objekt Chabařovická, číslo zákaznického účtu: 30255380 | C115: C01d | H115: 0 | I115: 0 | L115: 0 | M115: 0 | N115: 290 | P115: 290 | Q115: 24.16666667 | R115: 519 | T115: 519 | U115: 43.25
B116: objekt Rajmonova, číslo zákaznického účtu: 30255359 | C116: C01d | H116: 0 | I116: 0 | L116: 0 | M116: 0 | N116: 326 | P116: 326 | Q116: 27.16666667 | R116: 647 | T116: 647 | U116: 53.91666667
B117: objekt Burešova, číslo zákaznického účtu: 30261607 | C117: C01d | H117: 0 | I117: 0 | L117: 0 | M117: 0 | N117: 143 | P117: 143 | Q117: 11.91666667 | R117: 688 | T117: 688 | U117: 57.33333333
B118: objekt Lyčkovo náměstí, číslo zákaznického účtu: 30209121 | H118: 0 | I118: 0 | L118: 0 | M118: 0 | P118: 0 | Q118: 0 | R118: =297+352 -> 649 | T118: 649 | U118: 54.08333333
B119: objekt U Sluncové, číslo zákaznického účtu: 30209120 | F119: =13 -> 13 | H119: 13 | I119: 1.083333333 | J119: =221+174.11 -> 395.11 | L119: 395.11 | M119: 32.92583333 | N119: =207.89+174 -> 381.89 | P119: 381.89 | Q119: 31.82416667 | R119: 211 | T119: 211 | U119: 17.58333333
B120: objekt Na Rokytce - městský mobiliář, číslo zákaznického účtu: 30206769 | F120: 51 | H120: 51 | I120: 4.25 | J120: =409+72.73 -> 481.73 | L120: 481.73 | M120: 40.14416667 | N120: =72.73+119.27+142 -> 334 | P120: 334 | Q120: 27.83333333 | R120: 237 | T120: 237 | U120: 19.75
B121: objekt Lindnerova, číslo zákaznického účtu: 30209123 | F121: =14 -> 14 | H121: 14 | I121: 1.166666667 | J121: =259+148.41 -> 407.41 | L121: 407.41 | M121: 33.95083333 | N121: =219.59+157 -> 376.59 | P121: 376.59 | Q121: 31.3825 | R121: 232 | T121: 232 | U121: 19.33333333
B122: objekt Heydukova, číslo zákaznického účtu: 30209125 | F122: =2 -> 2 | H122: 2 | I122: 0.1666666667 | J122: =42+147.06 -> 189.06 | L122: 189.06 | M122: 15.755 | N122: =216.94+150 -> 366.94 | P122: 366.94 | Q122: 30.57833333 | R122: 220 | T122: 220 | U122: 18.33333333
B123: objekt Vacínova, číslo zákaznického účtu: 30230600 | H123: 0 | I123: 0 | L123: 0 | M123: 0 | P123: 0 | Q123: 0 | T123: 0 | U123: 0
B124: objekt Střížkovská, číslo zákaznického účtu: 30230237 | C124: C01d | H124: 0 | I124: 0 | J124: 111.79 | L124: 111.79 | M124: 9.315833333 | N124: =339.21+147 -> 486.21 | P124: 486.21 | Q124: 40.5175 | R124: 236 | T124: 236 | U124: 19.66666667
B125: objekt Pivovarnická - městský mobiliář, číslo zákaznického účtu: 30209122 | F125: =2 -> 2 | H125: 2 | I125: 0.1666666667 | J125: =53+142.59 -> 195.59 | L125: 195.59 | M125: 16.29916667 | N125: =132.42+145 -> 277.42 | P125: 277.42 | Q125: 23.11833333 | R125: 243 | T125: 243 | U125: 20.25
A126: Obvodní ústav sociálně-zdravotnických služeb (OÚSS) Praha 8 Ředitelství, pro dům s pečovatelskou službou a Klub seniorů (chybí jedno odběrné místo u bulovka 1462/12 jedno místo navíc) | B126: Bulovka 1462/10, 180 00 Praha 8 - Libeň
B127: číslo odběrného místa: 8110028054 číslo zákaznického účtu: 11012019 | C127: C02d | E127: není | F127: =1162 -> 1162 | H127: 1162 | I127: =H127/5 -> 232.4 | J127: =1882+1167 -> 3049 | L127: 3049 | M127: 254.0833333 | N127: =1886+1160 -> 3046 | P127: 3046 | Q127: 253.8333333 | R127: =1887 -> 1887 | T127: 1887 | U127: =T127/8 -> 235.875
B128: číslo odběrného místa: 8110207312 číslo zákaznického účtu: 10039871 | C128: C02d | E128: není | F128: =128+100 -> 228 | H128: 228 | I128: 19 | J128: =164+89 -> 253 | L128: 253 | M128: 21.08333333 | N128: =144+89 -> 233 | P128: 233 | Q128: 19.41666667 | R128: =147 -> 147 | T128: 147 | U128: =T128/8 -> 18.375
B129: číslo odběrného místa: 8110028070 číslo zákaznického účtu: 11012021 | C129: C02d | E129: není | F129: =326 -> 326 | H129: 326 | I129: =H129/5 -> 65.2 | J129: =316+528 -> 844 | L129: 844 | M129: 70.33333333 | N129: =511+313 -> 824 | P129: 824 | Q129: 68.66666667 | R129: =511 -> 511 | T129: 511 | U129: =T129/8 -> 63.875
B130: číslo odběrného místa: 8110207256 číslo zákaznického účtu: 10039862 | C130: C02d | E130: není | F130: =354 -> 354 | H130: 354 | I130: =H130/5 -> 70.8 | J130: =573+311 -> 884 | L130: 884 | M130: 73.66666667 | N130: =504+273 -> 777 | P130: 777 | Q130: 64.75 | R130: =446 -> 446 | T130: 446 | U130: =T130/8 -> 55.75
A131: Obvodní ústav sociálně-zdravotnických služeb (OÚSS) Praha 8 Domácí ošetřovatelská péče | B131: Bulovka 1462/12, 180 00 Praha 8 - Libeň
B132: číslo odběrného místa: 8110207298 číslo zákaznického účtu: 10039867 | C132: C02d | E132: není | F132: =869 -> 869 | H132: 869 | I132: =H132/5 -> 173.8 | J132: =1408+951 -> 2359 | L132: 2359 | M132: 196.5833333 | N132: =1537+978 -> 2515 | P132: 2515 | Q132: 209.5833333 | R132: =1592 -> 1592 | T132: 1592 | U132: =T132/8 -> 199
B133: číslo odběrného místa: 8110207283 číslo zákaznického účtu: 10039866 | C133: C02d | E133: není | F133: =253 -> 253 | H133: 253 | I133: =H133/5 -> 50.6 | J133: =411+194+56 -> 661 | L133: 661 | M133: 55.08333333 | N133: =406+159 -> 565 | P133: 565 | Q133: 47.08333333 | R133: =272 -> 272 | T133: 272 | U133: =T133/8 -> 34
A134: Obvodní ústav sociálně-zdravotnických služeb (OÚSS) Praha 8 Denní děteské zařízení - Jesle | B134: Mirovická 1282/6, 182 00 Praha 8 - Kobylisy
B135: číslo odběrného místa: 8110171230 číslo zákaznického účtu: 10089397 | C135: C02d | E135: není | F135: =6690 -> 6690 | H135: 6690 | I135: =H135/6 -> 1115 | J135: =6150+5488+906 -> 12544 | L135: 12544 | M135: 1045.333333 | N135: =1314+1134+1169+1253+970+1026+978+427+1022+1025+987+935 -> 12240 | P135: 12240 | Q135: 1020 | R135: =1070+1008+1063+952+1025+1106+937+380+1051+1133+1026+935 -> 11686 | T135: 11686 | U135: 973.8333333
B136: číslo odběrného místa: 8110171218 číslo zákaznického účtu: 10089396 | C136: C02d | E136: není | F136: =1715 -> 1715 | H136: 1715 | I136: =H136/6 -> 285.8333333 | J136: =1575+1969 -> 3544 | L136: 3544 | M136: 295.3333333 | N136: =1798+1713 -> 3511 | P136: 3511 | Q136: 292.5833333 | R136: =1547 -> 1547 | T136: 1547 | U136: =T136/6 -> 257.8333333
A137: Obvodní ústav sociálně-zdravotnických služeb (OÚSS) Praha 8 - Dům sociálních služeb | B137: NaDlážděnce 1312/9, 182 00 Praha 8 - Kobylisy | C137: C02d | E137: není | F137: =9017 -> 9017 | H137: 9017 | I137: =H137/5 -> 1803.4 | J137: =12596+8822 -> 21418 | L137: 21418 | M137: 1784.833333 | N137: =12325+8044 -> 20369 | P137: 20369 | Q137: 1697.416667 | R137: =11333 -> 11333 | T137: 11333 | U137: =T137/8 -> 1416.625
A138: Obvodní ústav sociálně-zdravotnických služeb (OÚSS) Praha 8 Dům s pečovatelskou službou, Klub seniorů, Centrum aktivizačních programů (jedno odberové místo navíc) | B138: Burešova 1151/12, 182 00 Praha 8 - Kobylisy
B139: číslo odběrného místa: 8110180797 číslo zákaznického účtu:10090132 | C139: C02d | E139: není | F139: =1209 -> 1209 | H139: 1209 | I139: =H139/6 -> 201.5 | J139: =1476 -> 1476 | L139: 1476 | M139: 123 | N139: =1383+1379 -> 2762 | P139: 2762 | Q139: 230.1666667 | R139: =1281 -> 1281 | T139: 1281 | U139: =T139/6 -> 213.5
B140: číslo odběrného místa: 8110180810 číslo zákaznického účtu: 10090133 | C140: C02d | E140: není | F140: =362 -> 362 | H140: 362 | I140: 60.33333333 | J140: =451 -> 451 | L140: 451 | M140: =L140/6 -> 75.16666667 | N140: =424+427 -> 851 | P140: 851 | Q140: 70.91666667 | R140: =397 -> 397 | T140: 397 | U140: =T140/6 -> 66.16666667
B141: číslo odběrného místa: 8110102592 číslo zákaznického účtu: 30074897 | C141: C02d | E141: není | F141: =1592 -> 1592 | H141: 1592 | I141: 265.3333333 | J141: =1907 -> 1907 | L141: 1907 | M141: =L141/6 -> 317.8333333 | N141: =1786+2155 -> 3941 | P141: 3941 | Q141: 328.4166667 | R141: =2000 -> 2000 | T141: 2000 | U141: =T141/6 -> 333.3333333
B142: číslo odběrného místa: 8110305741 číslo zákaznického účtu: 30108571 | C142: C02d | E142: není | F142: =26 -> 26 | H142: 26 | I142: 4.333333333 | J142: =26+21 -> 47 | L142: 47 | M142: =L142/6 -> 7.833333333 | N142: =21+6 -> 27 | P142: 27 | Q142: 2.25 | R142: =6 -> 6 | T142: 6 | U142: =T142/6 -> 1
B143: číslo odběrného místa: 8110827692 číslo zákaznického účtu: 30177070 | C143: C02d | E143: není | F143: =8133 -> 8133 | H143: 8133 | I143: 1355.5 | J143: =7853 -> 7853 | L143: 7853 | M143: =L143/6 -> 1308.833333 | N143: =7355+4720 -> 12075 | P143: 12075 | Q143: 1006.25 | R143: =4381 -> 4381 | T143: 4381 | U143: =T143/6 -> 730.1666667
B144: číslo odběrného místa: 8110180693 číslo zákaznického účtu: 10090120 | C144: C02d | E144: není | F144: =1240 -> 1240 | H144: 1240 | I144: 206.6666667 | L144: 0 | M144: 0 | P144: 0 | Q144: 0 | T144: 0 | U144: 0
B145: číslo odběrného místa: 8110180743 číslo zákaznického účtu: 10090126 | C145: C02d | E145: není | F145: =385 -> 385 | H145: 385 | I145: 64.16666667 | J145: =713 -> 713 | L145: 713 | M145: =L145/6 -> 118.8333333 | N145: =668+666 -> 1334 | P145: 1334 | Q145: 111.1666667 | R145: =620 -> 620 | T145: 620 | U145: =T145/6 -> 103.3333333
A146: Obvodní ústav sociálně-zdravotnických služeb (OÚSS) Praha 8 Klub seniorů Taussigova | B146: Taussigova 1172/1, 182 00 Praha 8 - Kobylisy | H146: 0 | I146: 0 | L146: 0 | M146: 0 | N146: =164 -> 164 | P146: 164 | Q146: 13.66666667 | R146: =183 -> 183 | T146: 183 | U146: =T146/6 -> 30.5
A147: Obvodní ústav sociálně-zdravotnických služeb (OÚSS) Praha 8 Dům s pečovatelskou službou, kancelář a pečovatelská služba | B147: Křižíkova 35/46, 186 00 Praha 8 - Karlín
B148: číslo odběrného místa: 8110409801 číslo zákaznického účtu: 11120138 | C148: C02d | E148: není | F148: =2409 -> 2409 | H148: 2409 | I148: =H148/7 -> 344.1428571 | J148: =1766 -> 1766 | L148: 1766 | M148: =L148/7 -> 252.2857143 | N148: =2014+1571 -> 3585 | P148: 3585 | Q148: 298.75 | R148: =1797 -> 1797 | T148: 1797 | U148: =T148/7 -> 256.7142857
B149: číslo odběrného místa: 8110409811 číslo zákaznického účtu: 11120143 | C149: C02d | E149: není | F149: =1240 -> 1240 | H149: =F149+G149 -> 1240 | I149: =H149/7 -> 177.1428571 | J149: =1240 -> 1240 | L149: 1240 | M149: =L149/7 -> 177.1428571 | N149: =1415+1511 -> 2926 | P149: 2926 | Q149: 243.8333333 | R149: =1730 -> 1730 | T149: 1730 | U149: =T149/7 -> 247.1428571
A150: Obvodní ústav sociálně-zdravotnických služeb (OÚSS) Praha 8 Sům s pečovatelskou službou, Denní stacionář | B150: Křižíkova 167/50, 186 00 Praha 8 - Karlín
B151: číslo odběrného místa: 8110571440 číslo zákaznického účtu: 30048642 | C151: C02d | E151: není | F151: =549 -> 549 | H151: 549 | I151: =H151/7 -> 78.42857143 | J151: =457 -> 457 | L151: 457 | M151: =L151/6 -> 76.16666667 | N151: =542+429 -> 971 | P151: 971 | Q151: 80.91666667 | R151: =512 -> 512 | T151: 512 | U151: =T151/7 -> 73.14285714
B152: číslo odběrného místa: 8110571096 číslo zákaznického účtu: 11122265 | C152: C02d | E152: není | F152: =1988 -> 1988 | H152: 1988 | I152: =H152/7 -> 284 | J152: =1777 -> 1777 | L152: 1777 | M152: =L152/6 -> 296.1666667 | N152: =2112+1975 -> 4087 | P152: 4087 | Q152: 340.5833333 | R152: =2361 -> 2361 | T152: 2361 | U152: =T152/7 -> 337.2857143
B153: číslo odběrného místa: 8110416076 číslo zákaznického účtu: 11122272 | C153: C02d | E153: není | F153: =340 -> 340 | H153: 340 | I153: =H153/7 -> 48.57142857 | J153: =128 -> 128 | L153: 128 | M153: =L153/6 -> 21.33333333 | N153: =160+97 -> 257 | P153: 257 | Q153: 21.41666667 | R153: =116 -> 116 | T153: 116 | U153: =T153/7 -> 16.57142857
A154: Gerontologické centrum, příspěvková organizace | B154: Kobylisy, 182 00 Praha 8, zdravotnickézařízení
B155: zdravotnické zařízení Šimůnkova 1600/5, | C155: C02d/C03d | E155: není | F155: =18539+20451+2548+13382+4099+3960+3951+2691 -> 69621 | H155: 69621 | I155: 5801.75 | J155: =1522+9695+2325+14254+305+2710+21167+13361+3366 -> 68705 | L155: 68705 | M155: 5725.416667 | N155: =18446+11644+11644+2934+18970+13385+3362 -> 80385 | P155: 80385 | Q155: 6698.75 | R155: =10400+6001+7338+4235+1844+1064 -> 30882 | T155: 30882 | U155: =T155/6 -> 5147
B156: Benákova 1100/6, Kobylisy, 182 00 Praha8, | C156: C02d/C03d | E156: není | F156: =3955+4077+4054+4337+4127+4012+3919+3967+3832+25551+26924 -> 88755 | H156: 88755 | I156: =H156/11 -> 8068.636364 | J156: =4032+3706+4155+3722+3430+3822+3997+3578+3708+3720+3614+3553+26185+27866 -> 99088 | L156: 99088 | M156: 8257.333333 | N156: =3746+3494+3886+3680+4026+3701+4586+3972+4270+4094+3920+3991+26676+27557 -> 101599 | P156: 101599 | Q156: 8466.583333 | R156: =3975+3253+3561+3574+4157+4092+4422+4334+4051+4170+4096+4111+15652+10450+28885 -> 102783 | T156: 102783 | U156: 8565.25
A157: Úřad MČ Praha 8 – odbor správy majetku – objekt Poliklinika Mazurská | B157: POLIKLINIKA, Mazurská 484/2, Praha8 - Troja | F157: =39545+39410+35126+33058+31164+31266+29417+30812+31171+39438+39634 -> 380041 | G157: =8765+8849+7949+7354+6246+6087+6783+5954+6001+7500+7450 -> 78938 | H157: 458979 | I157: =H157/11 -> 41725.36364 | J157: =39769+34567+35519+33091+30868+29913+28023+28942+30530+32799+34240+32147 -> 390408 | K157: =7497+6950+7782+6885+6691+6337+6048+6676+6614+6821+7429+7564 -> 83294 | L157: 473702 | M157: 39475.16667 | N157: =36886+31390+31971+30513+29258+29630+30054+30351+31347+33636+33691+34706 -> 383433 | O157: =7495+6485+6753+6585+6435+5957+6199+7555+6228+6788+7216+7964 -> 81660 | P157: 465093 | Q157: 38757.75 | R157: =37578+34993+35954+32997+29563+31016+30332+31299+31569+33877+33688+32751 -> 395617 | S157: =7695+7440+7637+7129+6771+6181+6272+6632+6385+7053+7111+7351 -> 83657 | T157: 479274 | U157: 39939.5
A158: Úřad MČ Praha 8 – odbor správy majetku – objekt Fokus Praha o.s. | B158: Dolákova 536/24, 181 00 Praha 8 – Bohnice | H158: 0 | I158: 0 | L158: 0 | M158: 0 | P158: 0 | Q158: 0 | T158: 0 | U158: 0
F159: Spotřeba VT 2012 | G159: spotřeba NT 2012 | H159: spotřeba celkem 2012 | I159: průměrná spotřeba 2012 | J159: Spotřeba VT 2013 | K159: spotřeba NT 2013 | L159: spotřeba celkem 2013 | M159: průměrná spotřeba 2013 | N159: Spotřeba VT 2014 | O159: spotřeba NT 2014 | P159: spotřeba celkem 2014 | Q159: průměrná spotřeba 2014 | R159: Spotřeba VT 2015 | S159: spotřeba NT 2015 | T159: spotřeba celkem 2015 | U159: průměrná spotřeba 2015
A160: Spotřeba Celkem | F160: =F158+F157+F156+F155+F153+F152+F151+F149+F148+F146+F145+F144+F143+F142+F141+F140+F139+F137+F136+F135+F133+F132+F130+F129+F128+F127+F125+F124+F123+F122+F121+F120+F119+F118+F117+F116+F115+F114+F113+F112+F111+F110+F109+F108+F107+F106+F105+F104+F103+F102+F101+F100+F99+F98+F97+F96+F95+F94+F93+F92+F91+F89+F88+F87+F85+F84+F83+F82+F80+F79+F78+F77+F76+F75+F74+F72+F71+F70+F69+F68+F67+F66+F65+F64+F63+F62+F61+F60+F59+F58+F57+F56+F55+F53+F52+F51+F50+F49+F48+F47+F46+F44+F43+F42+F41+F40+F39+F38+F37+F35+F34+F33+F31+F30+F29+F28+F27+F26+F25+F23+F22+F21+F20+F19+F17+F16+F15+F14+F13+F12+F11+F10+F9+F8+F7+F6+F5+F4 -> 4005314.1 | G160: =G158+G157+G156+G155+G153+G152+G151+G149+G148+G146+G145+G144+G143+G142+G141+G140+G139+G137+G136+G135+G133+G132+G130+G129+G128+G127+G125+G124+G123+G122+G121+G120+G119+G118+G117+G116+G115+G114+G113+G112+G111+G110+G109+G108+G107+G106+G105+G104+G103+G102+G101+G100+G99+G98+G97+G96+G95+G94+G93+G92+G91+G89+G88+G87+G85+G84+G83+G82+G80+G79+G78+G77+G76+G75+G74+G72+G71+G70+G69+G68+G67+G66+G65+G64+G63+G62+G61+G60+G59+G58+G57+G56+G55+G53+G52+G51+G50+G49+G48+G47+G46+G44+G43+G42+G41+G40+G39+G38+G37+G35+G34+G33+G31+G30+G29+G28+G27+G23+G22+G21+G20+G19+G17+G16+G15+G14+G13+G12+G11+G10+G9+G8+G7+G6+G5+G4 -> 596566 | H160: 4555754.1 | I160: 404436.4526 | J160: 4014612 | K160: 753964 | L160: 4768576 | M160: 399065.2307 | N160: 4064350.71 | O160: 945574 | P160: 5009924.71 | Q160: 431562.9544 | R160: 3389119.15 | S160: 1038846 | T160: 4427965.15 | U160: 413116.761
